[Event "Late-Titled-Tuesday-Blitz-September-19-2023"]
[Site "Chess.com"]
[Date "2023.09.19"]
[Round "1"]
[White "AlexNovitz"]
[Black "ErikRonka"]
[Result "1-0"]
[WhiteElo "2249"]
[BlackElo "2526"]
[TimeControl "180+1"]
[EndTime "14:08:11 PDT"]
[Termination "AlexNovitz won on time"]

1. e4 {[%clk 0:02:57.8]} 1... c5 {[%clk 0:02:59.9]} 2. Nf3 {[%clk 0:02:57.2]}
2... e6 {[%clk 0:03:00.3]} 3. d4 {[%clk 0:02:57.2]} 3... cxd4 {[%clk 0:03:01.2]}
4. Nxd4 {[%clk 0:02:57.4]} 4... Nf6 {[%clk 0:03:01.7]} 5. Nc3 {[%clk 0:02:56.5]}
5... d6 {[%clk 0:03:01.4]} 6. Be3 {[%clk 0:02:52.3]} 6... a6 {[%clk 0:03:00.2]}
7. h3 {[%clk 0:02:47.9]} 7... b5 {[%clk 0:02:46.4]} 8. a3 {[%clk 0:02:45.4]}
8... Bb7 {[%clk 0:02:45.8]} 9. Bd3 {[%clk 0:02:38.3]} 9... Nbd7 {[%clk
0:02:42.1]} 10. O-O {[%clk 0:02:32.4]} 10... Nc5 {[%clk 0:02:37]} 11. Bg5 {[%clk
0:02:32.7]} 11... h6 {[%clk 0:02:34.6]} 12. Bxf6 {[%clk 0:02:31.9]} 12... Qxf6
{[%clk 0:02:35.5]} 13. Nf3 {[%clk 0:02:26.9]} 13... g5 {[%clk 0:02:24.3]} 14.
Re1 {[%clk 0:02:13.2]} 14... Bg7 {[%clk 0:02:05.5]} 15. Nh2 {[%clk 0:02:07.6]}
15... O-O {[%clk 0:01:56.1]} 16. Qh5 {[%clk 0:02:03.9]} 16... Nxd3 {[%clk
0:01:19.5]} 17. cxd3 {[%clk 0:02:04.8]} 17... Kh7 {[%clk 0:01:15.8]} 18. Rac1
{[%clk 0:01:59.1]} 18... Rac8 {[%clk 0:01:14.8]} 19. Ng4 {[%clk 0:01:39.5]}
19... Qg6 {[%clk 0:01:09.8]} 20. Qxg6+ {[%clk 0:01:39.8]} 20... Kxg6 {[%clk
0:01:10.7]} 21. Red1 {[%clk 0:01:35.6]} 21... Rc7 {[%clk 0:01:03.7]} 22. d4
{[%clk 0:01:29.1]} 22... Rfc8 {[%clk 0:01:04.1]} 23. f3 {[%clk 0:01:18.2]} 23...
a5 {[%clk 0:00:55.1]} 24. e5 {[%clk 0:01:03.2]} 24... dxe5 {[%clk 0:00:35.6]}
25. Nxe5+ {[%clk 0:01:02.1]} 25... Kh7 {[%clk 0:00:23.4]} 26. Kf2 {[%clk
0:00:41.6]} 26... b4 {[%clk 0:00:21.6]} 27. axb4 {[%clk 0:00:41.3]} 27... axb4
{[%clk 0:00:22.5]} 28. Ne2 {[%clk 0:00:41.9]} 28... Bd5 {[%clk 0:00:20.6]} 29.
Rxc7 {[%clk 0:00:24.9]} 29... Rxc7 {[%clk 0:00:21.5]} 30. Rc1 {[%clk 0:00:24.9]}
30... Ra7 {[%clk 0:00:21.3]} 31. f4 {[%clk 0:00:17]} 31... f6 {[%clk 0:00:20.7]}
32. Nc6 {[%clk 0:00:14.7]} 32... Ra2 {[%clk 0:00:18.5]} 33. Nxb4 {[%clk
0:00:13.5]} 33... Rxb2 {[%clk 0:00:16.5]} 34. Nxd5 {[%clk 0:00:14.1]} 34... exd5
{[%clk 0:00:17.3]} 35. f5 {[%clk 0:00:11.1]} 35... Bf8 {[%clk 0:00:11.8]} 36.
Rc7+ {[%clk 0:00:10.4]} 36... Kg8 {[%clk 0:00:11.7]} 37. Rd7 {[%clk 0:00:11.1]}
37... Rb5 {[%clk 0:00:10.7]} 38. Nc3 {[%clk 0:00:09.2]} 38... Rb2+ {[%clk
0:00:09.6]} 39. Kf1 {[%clk 0:00:08.5]} 39... Rd2 {[%clk 0:00:07.9]} 40. Rxd5
{[%clk 0:00:07.6]} 40... Bb4 {[%clk 0:00:07.1]} 41. Nb5 {[%clk 0:00:06.8]} 41...
Rb2 {[%clk 0:00:04.3]} 42. Rd7 {[%clk 0:00:06.3]} 42... Bd2 {[%clk 0:00:02.5]}
43. Nc7 {[%clk 0:00:05.8]} 43... Bf4 {[%clk 0:00:02.5]} 44. Ne6 {[%clk
0:00:05.8]} 44... Bg3 {[%clk 0:00:02.8]} 45. Rd8+ {[%clk 0:00:03.8]} 45... Kf7
{[%clk 0:00:02.1]} 46. Rf8+ {[%clk 0:00:04]} 46... Ke7 {[%clk 0:00:02.3]} 47.
Rd8 {[%clk 0:00:03]} 47... Rb5 {[%clk 0:00:02.1]} 48. Ke2 {[%clk 0:00:03.3]}
48... Rxf5 {[%clk 0:00:01.9]} 49. Rh8 {[%clk 0:00:02]} 49... Kxe6 {[%clk
0:00:01.7]} 50. Rxh6 {[%clk 0:00:02.1]} 50... Rf2+ {[%clk 0:00:01.6]} 51. Ke3
{[%clk 0:00:02.3]} 51... Rf1 {[%clk 0:00:01]} 52. d5+ {[%clk 0:00:01.1]} 1-0

[Event "Late-Titled-Tuesday-Blitz-September-19-2023"]
[Site "Chess.com"]
[Date "2023.09.19"]
[Round "1"]
[White "GlavkonVVS"]
[Black "Qvalda"]
[Result "1/2-1/2"]
[WhiteElo "2608"]
[BlackElo "2342"]
[TimeControl "180+1"]
[EndTime "14:08:15 PDT"]
[Termination "Game drawn by repetition"]

1. c4 {[%clk 0:03:00.9]} 1... e6 {[%clk 0:02:56.3]} 2. Nc3 {[%clk 0:03:01]} 2...
Bb4 {[%clk 0:02:56.3]} 3. d4 {[%clk 0:03:01.6]} 3... Nf6 {[%clk 0:02:55.3]} 4.
Nf3 {[%clk 0:03:02]} 4... c5 {[%clk 0:02:53]} 5. dxc5 {[%clk 0:02:56.2]} 5...
O-O {[%clk 0:02:47.4]} 6. Bd2 {[%clk 0:02:45.4]} 6... Bxc5 {[%clk 0:02:39.7]} 7.
e3 {[%clk 0:02:44.6]} 7... b6 {[%clk 0:02:35.8]} 8. Bd3 {[%clk 0:02:43.1]} 8...
Bb7 {[%clk 0:02:35.5]} 9. O-O {[%clk 0:02:43.3]} 9... Be7 {[%clk 0:02:35.2]} 10.
e4 {[%clk 0:02:36.4]} 10... d6 {[%clk 0:02:35.5]} 11. Qe2 {[%clk 0:02:36.2]}
11... Nbd7 {[%clk 0:02:35.7]} 12. Rfd1 {[%clk 0:02:31]} 12... Rc8 {[%clk
0:02:35.2]} 13. Rac1 {[%clk 0:02:29.1]} 13... a6 {[%clk 0:02:35.4]} 14. b3
{[%clk 0:02:28.9]} 14... Qc7 {[%clk 0:02:35.7]} 15. Bb1 {[%clk 0:02:28]} 15...
Qb8 {[%clk 0:02:35.9]} 16. h3 {[%clk 0:02:18.9]} 16... Rfd8 {[%clk 0:02:35.9]}
17. Bf4 {[%clk 0:02:18.9]} 17... Nf8 {[%clk 0:02:35.7]} 18. e5 {[%clk
0:02:17.1]} 18... dxe5 {[%clk 0:02:32.2]} 19. Nxe5 {[%clk 0:02:16.8]} 19... Qa8
{[%clk 0:02:29.1]} 20. Na4 {[%clk 0:02:04.4]} 20... Bxg2 {[%clk 0:02:03.1]} 21.
Nxb6 {[%clk 0:02:02.8]} 21... Qb7 {[%clk 0:02:02.3]} 22. Nxc8 {[%clk 0:02:02.4]}
22... Rxc8 {[%clk 0:02:02.8]} 23. Qe3 {[%clk 0:01:31.7]} 23... Ng6 {[%clk
0:01:55.2]} 24. Nxg6 {[%clk 0:01:31.2]} 24... hxg6 {[%clk 0:01:56.1]} 25. Bd6
{[%clk 0:01:24]} 25... Bxd6 {[%clk 0:01:53.5]} 26. Rxd6 {[%clk 0:01:23.7]} 26...
Nh5 {[%clk 0:01:45.6]} 27. Rcd1 {[%clk 0:01:19.9]} 27... Bh1 {[%clk 0:01:20.7]}
28. f3 {[%clk 0:01:03.4]} 28... Bxf3 {[%clk 0:01:10.4]} 29. Rd7 {[%clk
0:01:02.8]} 29... Qa8 {[%clk 0:01:00.6]} 30. Rf1 {[%clk 0:01:02.2]} 30... Qc6
{[%clk 0:00:48.4]} 31. Rxf7 {[%clk 0:00:52.4]} 31... Kxf7 {[%clk 0:00:43.4]} 32.
Qxf3+ {[%clk 0:00:43.5]} 32... Qxf3 {[%clk 0:00:43.3]} 33. Rxf3+ {[%clk
0:00:44.2]} 33... Nf6 {[%clk 0:00:41.1]} 34. Bd3 {[%clk 0:00:39.5]} 34... a5
{[%clk 0:00:39.9]} 35. Kf2 {[%clk 0:00:39.4]} 35... Ke7 {[%clk 0:00:38]} 36. Ke3
{[%clk 0:00:39.4]} 36... g5 {[%clk 0:00:36.6]} 37. Rf1 {[%clk 0:00:36.6]} 37...
g4 {[%clk 0:00:35.6]} 38. Rg1 {[%clk 0:00:26.9]} 38... gxh3 {[%clk 0:00:29.8]}
39. Rxg7+ {[%clk 0:00:26.5]} 39... Kd6 {[%clk 0:00:30.5]} 40. Rg1 {[%clk
0:00:24.4]} 40... h2 {[%clk 0:00:25.8]} 41. Rh1 {[%clk 0:00:24.7]} 41... Rh8
{[%clk 0:00:20.1]} 42. Be2 {[%clk 0:00:24.6]} 42... Ke5 {[%clk 0:00:18.2]} 43.
Bf3 {[%clk 0:00:24.3]} 43... Rh3 {[%clk 0:00:17.3]} 44. Kf2 {[%clk 0:00:19.5]}
44... Kf4 {[%clk 0:00:17.2]} 45. Be2 {[%clk 0:00:17.1]} 45... Ne4+ {[%clk
0:00:11.1]} 46. Kg2 {[%clk 0:00:17.1]} 46... Re3 {[%clk 0:00:09.2]} 47. Bf1
{[%clk 0:00:14.4]} 47... Ng3 {[%clk 0:00:04.4]} 48. Rxh2 {[%clk 0:00:13.4]}
48... Nxf1 {[%clk 0:00:04.5]} 49. Kxf1 {[%clk 0:00:13.3]} 49... Rc3 {[%clk
0:00:04.7]} 50. Re2 {[%clk 0:00:11.9]} 50... e5 {[%clk 0:00:04.7]} 51. Kf2
{[%clk 0:00:12.2]} 51... e4 {[%clk 0:00:04.9]} 52. Rb2 {[%clk 0:00:11.5]} 52...
e3+ {[%clk 0:00:05.2]} 53. Ke2 {[%clk 0:00:11.9]} 53... Ke4 {[%clk 0:00:05]} 54.
a3 {[%clk 0:00:10.7]} 54... Rc1 {[%clk 0:00:04.5]} 55. b4 {[%clk 0:00:09.7]}
55... axb4 {[%clk 0:00:05.4]} 56. axb4 {[%clk 0:00:10.2]} 56... Rh1 {[%clk
0:00:05.9]} 57. Rc2 {[%clk 0:00:08.8]} 57... Rh2+ {[%clk 0:00:05]} 58. Kd1
{[%clk 0:00:09.2]} 58... Rh1+ {[%clk 0:00:05.4]} 59. Ke2 {[%clk 0:00:09.6]}
59... Rh2+ {[%clk 0:00:05.5]} 60. Kd1 {[%clk 0:00:10]} 60... Rh1+ {[%clk
0:00:03.2]} 61. Ke2 {[%clk 0:00:10.4]} 1/2-1/2

[Event "Late-Titled-Tuesday-Blitz-September-19-2023"]
[Site "Chess.com"]
[Date "2023.09.19"]
[Round "1"]
[White "Nick12772"]
[Black "SAInt_666"]
[Result "0-1"]
[WhiteElo "2377"]
[BlackElo "2660"]
[TimeControl "180+1"]
[EndTime "14:08:21 PDT"]
[Termination "SAInt_666 won by checkmate"]

1. Nf3 {[%clk 0:03:00.9]} 1... Nf6 {[%clk 0:02:59.7]} 2. g3 {[%clk 0:03:00.1]}
2... e6 {[%clk 0:03:00.3]} 3. Bg2 {[%clk 0:03:01]} 3... d5 {[%clk 0:03:01]} 4.
O-O {[%clk 0:03:01.9]} 4... Be7 {[%clk 0:03:01.4]} 5. d4 {[%clk 0:03:02.4]} 5...
O-O {[%clk 0:03:02.1]} 6. Nbd2 {[%clk 0:03:02.7]} 6... Nbd7 {[%clk 0:03:01.4]}
7. b3 {[%clk 0:03:03.2]} 7... b6 {[%clk 0:02:57.3]} 8. Bb2 {[%clk 0:03:03.5]}
8... Bb7 {[%clk 0:02:58]} 9. Re1 {[%clk 0:03:03.7]} 9... c5 {[%clk 0:02:57.9]}
10. c4 {[%clk 0:03:02.4]} 10... dxc4 {[%clk 0:02:55.1]} 11. Nxc4 {[%clk
0:03:01.8]} 11... cxd4 {[%clk 0:02:55.3]} 12. Qxd4 {[%clk 0:02:55.8]} 12... Bc5
{[%clk 0:02:50.7]} 13. Qh4 {[%clk 0:02:44.8]} 13... Qe7 {[%clk 0:02:24.2]} 14.
e3 {[%clk 0:02:38.5]} 14... Rfd8 {[%clk 0:02:18.2]} 15. Red1 {[%clk 0:02:33.8]}
15... Nf8 {[%clk 0:02:10.5]} 16. Nce5 {[%clk 0:02:19.2]} 16... Nd5 {[%clk
0:01:52.6]} 17. Qxe7 {[%clk 0:01:59.8]} 17... Bxe7 {[%clk 0:01:53.5]} 18. Nd4
{[%clk 0:01:40.3]} 18... Rac8 {[%clk 0:01:52.5]} 19. Rac1 {[%clk 0:01:38.9]}
19... Bf6 {[%clk 0:01:42.8]} 20. Ng4 {[%clk 0:01:16.9]} 20... Be7 {[%clk
0:01:28.3]} 21. Ne5 {[%clk 0:01:16.9]} 21... Bf6 {[%clk 0:01:16.3]} 22. Ng4
{[%clk 0:01:17.1]} 22... Nd7 {[%clk 0:01:05.4]} 23. Nxf6+ {[%clk 0:01:15.2]}
23... N7xf6 {[%clk 0:01:06.3]} 24. Nb5 {[%clk 0:01:12.5]} 24... a6 {[%clk
0:00:59.7]} 25. Na3 {[%clk 0:00:53.3]} 25... b5 {[%clk 0:00:53.9]} 26. Nb1
{[%clk 0:00:52.9]} 26... Kf8 {[%clk 0:00:46]} 27. Nc3 {[%clk 0:00:40.9]} 27...
Nxc3 {[%clk 0:00:35.3]} 28. Rxd8+ {[%clk 0:00:40.6]} 28... Rxd8 {[%clk
0:00:36.2]} 29. Bxc3 {[%clk 0:00:40.8]} 29... Bxg2 {[%clk 0:00:36.4]} 30. Kxg2
{[%clk 0:00:40]} 30... Nd5 {[%clk 0:00:24.1]} 31. Bd4 {[%clk 0:00:30.9]} 31...
Ra8 {[%clk 0:00:18.4]} 32. b4 {[%clk 0:00:26]} 32... f6 {[%clk 0:00:17]} 33. a3
{[%clk 0:00:24.3]} 33... e5 {[%clk 0:00:17]} 34. Bc5+ {[%clk 0:00:23.2]} 34...
Kf7 {[%clk 0:00:17.5]} 35. Rd1 {[%clk 0:00:22.9]} 35... Ke6 {[%clk 0:00:16]} 36.
e4 {[%clk 0:00:21]} 36... Nc3 {[%clk 0:00:16.1]} 37. Rd6+ {[%clk 0:00:21]} 37...
Kf7 {[%clk 0:00:16.6]} 38. Rd7+ {[%clk 0:00:21.2]} 38... Kg6 {[%clk 0:00:16.3]}
39. f3 {[%clk 0:00:20.7]} 39... h5 {[%clk 0:00:10.6]} 40. h3 {[%clk 0:00:20.2]}
40... Na4 {[%clk 0:00:08.2]} 41. Rd3 {[%clk 0:00:17.8]} 41... Rc8 {[%clk
0:00:05.1]} 42. Rd5 {[%clk 0:00:13.2]} 42... Nc3 {[%clk 0:00:04.1]} 43. Rd3
{[%clk 0:00:12.3]} 43... Na4 {[%clk 0:00:04.1]} 44. Rd5 {[%clk 0:00:12.6]} 44...
a5 {[%clk 0:00:04.1]} 45. g4 {[%clk 0:00:10.8]} 45... hxg4 {[%clk 0:00:03.2]}
46. hxg4 {[%clk 0:00:11.7]} 46... Kf7 {[%clk 0:00:03.8]} 47. Rd7+ {[%clk
0:00:11.3]} 47... Kg6 {[%clk 0:00:04.4]} 48. Rd5 {[%clk 0:00:11.5]} 48... Nxc5
{[%clk 0:00:04.7]} 49. Rxc5 {[%clk 0:00:10.3]} 49... Rxc5 {[%clk 0:00:04.6]} 50.
bxc5 {[%clk 0:00:11.2]} 50... Kf7 {[%clk 0:00:05]} 51. Kf2 {[%clk 0:00:10.9]}
51... Ke6 {[%clk 0:00:04.9]} 52. Ke3 {[%clk 0:00:11.5]} 52... Kd7 {[%clk
0:00:05.6]} 53. Kd3 {[%clk 0:00:12.3]} 53... Kc6 {[%clk 0:00:06.2]} 54. Kc3
{[%clk 0:00:12.4]} 54... Kxc5 {[%clk 0:00:06.7]} 55. Kb3 {[%clk 0:00:13.2]}
55... b4 {[%clk 0:00:07.3]} 56. Ka4 {[%clk 0:00:09.7]} 56... bxa3 {[%clk
0:00:06.7]} 57. Kxa3 {[%clk 0:00:09.7]} 57... Kd4 {[%clk 0:00:07]} 58. Ka4
{[%clk 0:00:09.6]} 58... Ke3 {[%clk 0:00:07.7]} 59. Kxa5 {[%clk 0:00:10.5]}
59... Kxf3 {[%clk 0:00:08.4]} 60. Kb5 {[%clk 0:00:11.4]} 60... Kxe4 {[%clk
0:00:09.1]} 61. Kc5 {[%clk 0:00:12.3]} 61... Kf4 {[%clk 0:00:09.8]} 62. Kd5
{[%clk 0:00:13.2]} 62... Kxg4 {[%clk 0:00:10.4]} 63. Ke4 {[%clk 0:00:13.4]}
63... f5+ {[%clk 0:00:10.1]} 64. Ke3 {[%clk 0:00:14.3]} 64... f4+ {[%clk
0:00:10.5]} 65. Kf2 {[%clk 0:00:15.2]} 65... g5 {[%clk 0:00:10.5]} 66. Ke2
{[%clk 0:00:16.1]} 66... e4 {[%clk 0:00:11.4]} 67. Kf2 {[%clk 0:00:17]} 67...
e3+ {[%clk 0:00:12]} 68. Ke2 {[%clk 0:00:17.9]} 68... Kf5 {[%clk 0:00:12.7]} 69.
Kf3 {[%clk 0:00:18.5]} 69... Ke5 {[%clk 0:00:12.9]} 70. Ke2 {[%clk 0:00:18.2]}
70... Ke4 {[%clk 0:00:13.8]} 71. Ke1 {[%clk 0:00:18.4]} 71... g4 {[%clk
0:00:14.7]} 72. Kf1 {[%clk 0:00:19]} 72... f3 {[%clk 0:00:15.6]} 73. Kg1 {[%clk
0:00:19.5]} 73... g3 {[%clk 0:00:16]} 74. Kh1 {[%clk 0:00:19.9]} 74... e2 {[%clk
0:00:16.2]} 75. Kg1 {[%clk 0:00:20.1]} 75... e1=Q# {[%clk 0:00:17.1]} 0-1

[Event "Late-Titled-Tuesday-Blitz-September-19-2023"]
[Site "Chess.com"]
[Date "2023.09.19"]
[Round "1"]
[White "Dr_crypt"]
[Black "Fy_Rakotomaharo"]
[Result "1/2-1/2"]
[WhiteElo "2444"]
[BlackElo "2729"]
[TimeControl "180+1"]
[EndTime "14:08:25 PDT"]
[Termination "Game drawn by repetition"]

1. d4 {[%clk 0:02:58.4]} 1... d5 {[%clk 0:02:58.8]} 2. c4 {[%clk 0:02:58.1]}
2... e6 {[%clk 0:02:58.7]} 3. Nc3 {[%clk 0:02:58.5]} 3... Bb4 {[%clk 0:02:58.8]}
4. cxd5 {[%clk 0:02:55.3]} 4... exd5 {[%clk 0:02:59]} 5. Qa4+ {[%clk 0:02:55.4]}
5... Nc6 {[%clk 0:02:58.8]} 6. Nf3 {[%clk 0:02:55.5]} 6... Nf6 {[%clk
0:02:58.4]} 7. Bf4 {[%clk 0:02:55]} 7... O-O {[%clk 0:02:56.6]} 8. e3 {[%clk
0:02:54.7]} 8... Bd7 {[%clk 0:02:55.1]} 9. Qc2 {[%clk 0:02:54.6]} 9... Re8
{[%clk 0:02:39.8]} 10. Bd3 {[%clk 0:02:53.4]} 10... Bf8 {[%clk 0:02:38.1]} 11.
a3 {[%clk 0:02:52]} 11... h6 {[%clk 0:02:37.9]} 12. O-O {[%clk 0:02:49.3]} 12...
a6 {[%clk 0:02:38.2]} 13. b4 {[%clk 0:02:47]} 13... Ne7 {[%clk 0:02:31.7]} 14.
Rab1 {[%clk 0:02:24.3]} 14... Nc8 {[%clk 0:02:25]} 15. a4 {[%clk 0:02:23.5]}
15... Bd6 {[%clk 0:02:23.9]} 16. Be5 {[%clk 0:02:21.4]} 16... c6 {[%clk
0:02:20.7]} 17. b5 {[%clk 0:02:19.1]} 17... axb5 {[%clk 0:02:21.6]} 18. axb5
{[%clk 0:02:19.6]} 18... Bg4 {[%clk 0:02:16]} 19. Bxd6 {[%clk 0:02:15.4]} 19...
Qxd6 {[%clk 0:01:51.7]} 20. Ne5 {[%clk 0:02:14.2]} 20... Be6 {[%clk 0:01:51.9]}
21. bxc6 {[%clk 0:02:13.7]} 21... bxc6 {[%clk 0:01:52.8]} 22. Na4 {[%clk
0:02:13.4]} 22... Ne7 {[%clk 0:01:52.9]} 23. Rfc1 {[%clk 0:02:05.5]} 23... Nd7
{[%clk 0:01:44.6]} 24. Nb6 {[%clk 0:02:01.3]} 24... Nxb6 {[%clk 0:01:40.8]} 25.
Rxb6 {[%clk 0:02:00.7]} 25... Bd7 {[%clk 0:01:32.5]} 26. Rb7 {[%clk 0:01:46.6]}
26... Red8 {[%clk 0:01:32.4]} 27. h3 {[%clk 0:01:33.7]} 27... Be8 {[%clk
0:01:31.5]} 28. Qc5 {[%clk 0:01:26.8]} 28... Qxc5 {[%clk 0:01:28.9]} 29. Rxc5
{[%clk 0:01:27.7]} 29... Kf8 {[%clk 0:01:29.4]} 30. g4 {[%clk 0:00:51.6]} 30...
Ra3 {[%clk 0:01:20.8]} 31. Bf1 {[%clk 0:00:48.9]} 31... Ra1 {[%clk 0:01:20]} 32.
Kg2 {[%clk 0:00:49.4]} 32... Rda8 {[%clk 0:01:19.7]} 33. Rc2 {[%clk 0:00:44.2]}
33... g5 {[%clk 0:01:08.1]} 34. Bd3 {[%clk 0:00:42.5]} 34... R1a3 {[%clk
0:01:01.2]} 35. Bf5 {[%clk 0:00:42.4]} 35... R3a7 {[%clk 0:00:56.5]} 36. Rcb2
{[%clk 0:00:41.8]} 36... f6 {[%clk 0:00:54.5]} 37. Nd3 {[%clk 0:00:35.8]} 37...
Nxf5 {[%clk 0:00:49.3]} 38. gxf5 {[%clk 0:00:36.3]} 38... Bd7 {[%clk 0:00:49.4]}
39. Nc5 {[%clk 0:00:18.8]} 39... Bxf5 {[%clk 0:00:48.9]} 40. Rxa7 {[%clk
0:00:19.2]} 40... Rxa7 {[%clk 0:00:48.8]} 41. Rb6 {[%clk 0:00:19.5]} 41... Rc7
{[%clk 0:00:40.8]} 42. f3 {[%clk 0:00:19.6]} 42... Ke7 {[%clk 0:00:39.3]} 43. e4
{[%clk 0:00:19.9]} 43... Bc8 {[%clk 0:00:33.9]} 44. e5 {[%clk 0:00:16.7]} 44...
Bf5 {[%clk 0:00:27.6]} 45. Kg3 {[%clk 0:00:16.6]} 45... h5 {[%clk 0:00:27]} 46.
h4 {[%clk 0:00:16.8]} 46... g4 {[%clk 0:00:27.7]} 47. fxg4 {[%clk 0:00:15.7]}
47... Bxg4 {[%clk 0:00:27.4]} 48. Kf4 {[%clk 0:00:16.1]} 48... Bc8 {[%clk
0:00:22.9]} 49. Rb8 {[%clk 0:00:12.4]} 49... Kf7 {[%clk 0:00:19.2]} 50. Ra8
{[%clk 0:00:12.7]} 50... Bg4 {[%clk 0:00:16.3]} 51. Ra6 {[%clk 0:00:11.7]} 51...
fxe5+ {[%clk 0:00:15.5]} 52. Kxe5 {[%clk 0:00:11]} 52... Ke7 {[%clk 0:00:11.4]}
53. Ra8 {[%clk 0:00:06.6]} 53... Be2 {[%clk 0:00:08.5]} 54. Rh8 {[%clk
0:00:06.6]} 54... Bg4 {[%clk 0:00:05.9]} 55. Rh7+ {[%clk 0:00:06.6]} 55... Kd8
{[%clk 0:00:06]} 56. Rh8+ {[%clk 0:00:06.9]} 56... Ke7 {[%clk 0:00:06.4]} 57.
Rh7+ {[%clk 0:00:06.9]} 57... Kd8 {[%clk 0:00:06.9]} 58. Rh8+ {[%clk 0:00:07.1]}
58... Ke7 {[%clk 0:00:07.6]} 1/2-1/2

[Event "Late-Titled-Tuesday-Blitz-September-19-2023"]
[Site "Chess.com"]
[Date "2023.09.19"]
[Round "1"]
[White "Jospem"]
[Black "whiteglovethief"]
[Result "1/2-1/2"]
[WhiteElo "3062"]
[BlackElo "2511"]
[TimeControl "180+1"]
[EndTime "14:08:30 PDT"]
[Termination "Game drawn - insufficient material"]

1. e4 {[%clk 0:02:59.5]} 1... e6 {[%clk 0:03:00.2]} 2. d4 {[%clk 0:02:58.1]}
2... d5 {[%clk 0:03:01.1]} 3. Nd2 {[%clk 0:02:58.5]} 3... c5 {[%clk 0:03:00.8]}
4. Ngf3 {[%clk 0:02:58.9]} 4... Nc6 {[%clk 0:03:00]} 5. dxc5 {[%clk 0:02:58]}
5... Bxc5 {[%clk 0:02:57.3]} 6. Bd3 {[%clk 0:02:58.4]} 6... Nf6 {[%clk
0:02:48.9]} 7. Qe2 {[%clk 0:02:53.8]} 7... Qc7 {[%clk 0:02:35.7]} 8. c3 {[%clk
0:02:50.4]} 8... O-O {[%clk 0:02:35.2]} 9. O-O {[%clk 0:02:50.3]} 9... dxe4
{[%clk 0:02:22.9]} 10. Nxe4 {[%clk 0:02:49.9]} 10... Nxe4 {[%clk 0:02:22.9]} 11.
Qxe4 {[%clk 0:02:50.3]} 11... f5 {[%clk 0:02:20.4]} 12. Qc4 {[%clk 0:02:43.1]}
12... Bd6 {[%clk 0:02:08.9]} 13. Re1 {[%clk 0:02:43.3]} 13... Ne5 {[%clk
0:01:56.3]} 14. Nxe5 {[%clk 0:02:26.4]} 14... Bxe5 {[%clk 0:01:55.4]} 15. h3
{[%clk 0:02:23.7]} 15... Bh2+ {[%clk 0:01:47.2]} 16. Kh1 {[%clk 0:02:22.2]}
16... Bd6 {[%clk 0:01:48.1]} 17. Qxc7 {[%clk 0:02:12.1]} 17... Bxc7 {[%clk
0:01:46.7]} 18. Bc4 {[%clk 0:02:13]} 18... Kf7 {[%clk 0:01:46]} 19. Be3 {[%clk
0:02:09.1]} 19... Kf6 {[%clk 0:01:43.9]} 20. Rad1 {[%clk 0:02:07.6]} 20... e5
{[%clk 0:01:41.3]} 21. Bc5 {[%clk 0:01:52.2]} 21... Rd8 {[%clk 0:01:14.5]} 22.
Rxd8 {[%clk 0:01:52]} 22... Bxd8 {[%clk 0:01:15.3]} 23. Bd6 {[%clk 0:01:52.9]}
23... e4 {[%clk 0:01:14.9]} 24. f3 {[%clk 0:01:53.5]} 24... Be6 {[%clk
0:01:11.4]} 25. Bxe6 {[%clk 0:01:33.9]} 25... Kxe6 {[%clk 0:01:12.3]} 26. Bg3
{[%clk 0:01:34.6]} 26... Kd5 {[%clk 0:01:10.3]} 27. fxe4+ {[%clk 0:01:33.8]}
27... fxe4 {[%clk 0:01:09.9]} 28. Rd1+ {[%clk 0:01:33]} 28... Kc5 {[%clk
0:01:06.6]} 29. Kg1 {[%clk 0:01:17.3]} 29... Bb6 {[%clk 0:01:01.8]} 30. Kf1
{[%clk 0:01:17.2]} 30... Rd8 {[%clk 0:00:55.8]} 31. Bf2+ {[%clk 0:01:13.2]}
31... Kc4 {[%clk 0:00:51.5]} 32. Rxd8 {[%clk 0:01:02.9]} 32... Bxd8 {[%clk
0:00:52.4]} 33. Ke2 {[%clk 0:01:03.6]} 33... a5 {[%clk 0:00:42.5]} 34. Bd4
{[%clk 0:01:04.2]} 34... Bf6 {[%clk 0:00:30.6]} 35. Bxf6 {[%clk 0:00:25.6]}
35... gxf6 {[%clk 0:00:31.5]} 36. Ke3 {[%clk 0:00:26.5]} 36... a4 {[%clk
0:00:28.4]} 37. Kxe4 {[%clk 0:00:18]} 37... a3 {[%clk 0:00:28.9]} 38. bxa3
{[%clk 0:00:18.7]} 38... Kxc3 {[%clk 0:00:29.5]} 39. Kf5 {[%clk 0:00:17.1]}
39... b5 {[%clk 0:00:28.3]} 40. Kxf6 {[%clk 0:00:17]} 40... Kb2 {[%clk
0:00:28.8]} 41. g4 {[%clk 0:00:16.5]} 41... Kxa2 {[%clk 0:00:26.5]} 42. h4
{[%clk 0:00:17.4]} 42... Kxa3 {[%clk 0:00:26.8]} 43. g5 {[%clk 0:00:18.3]} 43...
b4 {[%clk 0:00:27.1]} 44. h5 {[%clk 0:00:19.2]} 44... b3 {[%clk 0:00:27.4]} 45.
g6 {[%clk 0:00:19.3]} 45... hxg6 {[%clk 0:00:27.6]} 46. hxg6 {[%clk 0:00:20.2]}
46... b2 {[%clk 0:00:27.9]} 47. g7 {[%clk 0:00:21.1]} 47... b1=Q {[%clk
0:00:28.3]} 48. g8=Q {[%clk 0:00:22]} 48... Qf1+ {[%clk 0:00:27]} 49. Ke5 {[%clk
0:00:21.5]} 49... Qe2+ {[%clk 0:00:27.1]} 50. Kd4 {[%clk 0:00:21.3]} 50... Qd2+
{[%clk 0:00:27.3]} 51. Ke4 {[%clk 0:00:21.4]} 51... Qc2+ {[%clk 0:00:27.3]} 52.
Kf4 {[%clk 0:00:20.4]} 52... Qf2+ {[%clk 0:00:27]} 53. Ke4 {[%clk 0:00:20.2]}
53... Qe2+ {[%clk 0:00:27.4]} 54. Kf4 {[%clk 0:00:20.7]} 54... Qf2+ {[%clk
0:00:27.6]} 55. Ke5 {[%clk 0:00:21.3]} 55... Qe2+ {[%clk 0:00:27.7]} 56. Kd6
{[%clk 0:00:20.8]} 56... Qd3+ {[%clk 0:00:26.8]} 57. Kc7 {[%clk 0:00:21.5]}
57... Qc3+ {[%clk 0:00:25.8]} 58. Kd6 {[%clk 0:00:20.1]} 58... Qd3+ {[%clk
0:00:25.8]} 59. Ke7 {[%clk 0:00:19.2]} 59... Qe3+ {[%clk 0:00:26]} 60. Kf6
{[%clk 0:00:14.8]} 60... Qf4+ {[%clk 0:00:26]} 61. Ke7 {[%clk 0:00:14.9]} 61...
Qc7+ {[%clk 0:00:25.6]} 62. Kf6 {[%clk 0:00:15.1]} 62... Qd6+ {[%clk 0:00:25.6]}
63. Kf5 {[%clk 0:00:12.9]} 63... Qc5+ {[%clk 0:00:24.7]} 64. Ke4 {[%clk
0:00:10.5]} 64... Qb4+ {[%clk 0:00:24.7]} 65. Kf5 {[%clk 0:00:10.9]} 65... Qb5+
{[%clk 0:00:24.5]} 66. Kf4 {[%clk 0:00:10.3]} 66... Qb4+ {[%clk 0:00:24.6]} 67.
Ke3 {[%clk 0:00:11]} 67... Qc3+ {[%clk 0:00:24.1]} 68. Ke2 {[%clk 0:00:10.3]}
68... Qb2+ {[%clk 0:00:24.1]} 69. Kd1 {[%clk 0:00:10.1]} 69... Qb1+ {[%clk
0:00:22.3]} 70. Kd2 {[%clk 0:00:10.3]} 70... Qb2+ {[%clk 0:00:21.7]} 71. Kd1
{[%clk 0:00:10.6]} 71... Qb3+ {[%clk 0:00:20]} 72. Qxb3+ {[%clk 0:00:01.6]}
72... Kxb3 {[%clk 0:00:20.9]} 1/2-1/2